bitfinex-derivatives/quotes_BTCF0:USTF0_20250101
["timestamp","ask_amount","ask_price","bid_price","bid_amount"]
[1735738092060,0.3608,93844.0,93834.0,0.414189]
[1735738092262,0.1,93850.0,93843.0,0.3608]
[1735738092458,0.1,93850.0,93849.0,0.05338]
[1735738093973,0.1,93850.0,93849.0,0.05438]
[1735738094357,0.3608,93859.0,93858.0,0.053375]
[1735738096273,0.053365,93877.0,93858.0,0.415175]
[1735738096480,0.053365,93877.0,93864.0,0.10940639]
[1735738096667,0.053365,93877.0,93871.0,0.053368]
[1735738096865,0.05496365,93876.0,93871.0,0.053368]
[1735738097978,0.11628651,93875.0,93871.0,0.053368]
[1735738099486,0.053368,93872.0,93865.0,0.053371]
[1735738100378,0.053368,93872.0,93871.0,0.001]
[1735738100772,0.053368,93872.0,93865.0,0.053371]
[1735738100773,0.053368,93872.0,93865.0,0.054371]
[1735738102787,0.053368,93872.0,93865.0,0.053371]
[1735738102977,0.053368,93872.0,93871.0,0.001]
[1735738103386,0.053368,93872.0,93865.0,0.053371]
[1735738104079,0.053369,93870.0,93865.0,0.053371]
[1735738107284,0.053369,93869.0,93865.0,0.053371]
[1735738109881,0.11628651,93875.0,93865.0,0.053371]
[1735738110089,0.05337,93868.0,93865.0,0.053371]
[1735738111495,0.05337,93868.0,93864.0,0.10940639]
[1735738111784,0.05337,93868.0,93867.0,0.05337]
[1735738111988,0.11628651,93875.0,93865.0,0.032]
[1735738112190,0.053367,93873.0,93870.0,0.053368]
[1735738112382,0.11628651,93875.0,93871.0,0.0313]
[1735738112584,0.11628651,93875.0,93873.0,0.053367]
[1735738114196,0.11628651,93875.0,93873.0,0.054367]
[1735738114978,0.1,93875.0,93873.0,0.054367]
[1735738116190,0.414166,93874.0,93873.0,0.054367]
[1735738118798,0.414166,93874.0,93873.0,0.001]
[1735738120698,0.053377,93856.0,93853.0,0.053378]
[1735738121200,0.053377,93856.0,93851.0,0.0313]
[1735738121201,0.053377,93856.0,93854.0,0.053378]
[1735738122195,0.053377,93855.0,93854.0,0.053378]
[1735738122400,0.053377,93855.0,93854.0,0.060378]
[1735738122801,0.053377,93855.0,93854.0,0.064378]
[1735738123497,0.053377,93855.0,93854.0,0.063378]
[1735738124102,0.053377,93855.0,93854.0,0.057378]
[1735738124299,0.3608,93860.0,93851.0,0.084679]
[1735738124504,0.053377,93855.0,93854.0,0.001]
[1735738125993,0.3608,93860.0,93852.0,0.053379]
[1735738126190,0.053378,93853.0,93852.0,0.053379]
[1735738127099,0.053378,93853.0,93852.0,0.054379]
[1735738127794,0.053378,93853.0,93852.0,1.554379]
[1735738128209,0.053378,93853.0,93852.0,1.915179]
[1735738128702,0.053378,93853.0,93852.0,0.415179]
[1735738132597,0.053378,93853.0,93852.0,0.418179]
[1735738135308,0.053378,93853.0,93852.0,0.417179]
[1735738135607,0.053376,93858.0,93857.0,0.053374]
[1735738136509,0.27313942,93865.0,93857.0,0.053374]
[1735738136809,0.27313942,93865.0,93857.0,0.054374]
[1735738137003,0.053376,93858.0,93857.0,0.054374]
[1735738155504,0.27313942,93865.0,93857.0,0.001]
[1735738155702,0.27313942,93865.0,93864.0,0.053372]
[1735738156407,0.01283439,93865.0,93864.0,0.053372]
[1735738156601,0.053368,93872.0,93864.0,0.053372]
[1735738156808,0.053368,93872.0,93870.0,0.053368]
[1735738158106,0.3729282,93874.0,93870.0,0.054368]
[1735738158308,0.053368,93871.0,93870.0,0.054368]
[1735738159208,0.053368,93871.0,93870.0,0.001]
[1735738160602,0.3729282,93874.0,93862.0,0.086373]
[1735738160802,0.3729282,93874.0,93870.0,0.001]
[1735738161015,0.053368,93871.0,93870.0,0.001]
[1735738161704,0.053368,93871.0,93862.0,0.086373]
[1735738161911,0.053373,93863.0,93862.0,0.086373]
[1735738162911,0.053373,93863.0,93862.0,0.033]
[1735738168617,0.06571978,93863.0,93862.0,0.033]
[1735738182522,0.053379,93852.0,93844.0,0.0312]
[1735738182723,0.053379,93852.0,93845.0,0.0316]
[1735738183125,0.053382,93846.0,93845.0,0.0316]
[1735738184722,0.31932699,93857.0,93845.0,0.0316]
[1735738184928,0.49939236,93856.0,93845.0,0.0356]
[1735738185323,0.49939236,93856.0,93845.0,0.0386]
[1735738185525,0.3608,93849.0,93845.0,0.0386]
[1735738190827,0.3608,93849.0,93845.0,0.007]
[1735738192326,0.86019236,93849.0,93845.0,0.007]
[1735738192935,0.3608,93849.0,93845.0,0.007]
[1735738193533,0.49939236,93847.0,93845.0,0.007]
[1735738193833,0.3608,93849.0,93845.0,0.007]
[1735738194431,0.49939236,93847.0,93845.0,0.007]
[1735738194741,0.3608,93849.0,93845.0,0.007]
[1735738195530,0.49939236,93847.0,93845.0,0.007]
[1735738195740,0.3608,93849.0,93845.0,0.007]
[1735738195938,0.0325,93848.0,93845.0,0.007]
[1735738196338,0.11877094,93847.0,93837.0,0.0307]
[1735738196536,0.3608,93840.0,93821.0,0.031]
[1735738196740,0.3608,93840.0,93822.0,0.0302]
[1735738196941,0.49939236,93830.0,93822.0,0.0302]
[1735738197335,0.49939236,93829.0,93822.0,0.0302]
[1735738197732,0.49939236,93830.0,93822.0,0.0302]
[1735738197937,0.49939236,93830.0,93822.0,0.0372]
[1735738198143,0.49939236,93829.0,93822.0,0.0372]
[1735738198442,0.49939236,93830.0,93822.0,0.0412]
[1735738198862,0.49939236,93829.0,93822.0,0.0412]
[1735738199243,0.43252092,93840.0,93822.0,0.0412]
[1735738199244,0.49939236,93830.0,93822.0,0.0412]
[1735738199442,0.7216,93823.0,93822.0,0.0412]
[1735738199648,0.7216,93823.0,93794.0,0.3608]
[1735738199948,0.57111328,93820.0,93804.0,0.0625]
[1735738200147,0.3608,93805.0,93804.0,0.0625]
[1735738201746,0.3628,93805.0,93804.0,0.0625]
[1735738201948,0.002,93805.0,93804.0,0.0625]
[1735738202243,0.3628,93805.0,93804.0,0.0625]
[1735738202855,0.37488758,93805.0,93804.0,0.0625]
[1735738205049,0.37288758,93805.0,93804.0,0.0625]
[1735738205250,0.37488758,93805.0,93804.0,0.0625]
[1735738206345,0.3628,93805.0,93804.0,0.0625]
[1735738207659,0.3608,93805.0,93804.0,0.0635]
[1735738207852,0.3618,93805.0,93804.0,0.0635]
[1735738208050,0.001,93805.0,93804.0,0.0635]
[1735738210753,0.01203906,93813.0,93804.0,0.116906]
[1735738210949,0.3608,93814.0,93806.0,0.053405]
[1735738211440,0.37273152,93814.0,93806.0,0.053405]
[1735738211840,0.001,93813.0,93806.0,0.053405]
[1735738212946,0.37273152,93814.0,93806.0,0.053405]
[1735738213147,0.37473152,93814.0,93806.0,0.053405]
[1735738213744,0.37473152,93814.0,93807.0,0.053404]
[1735738214650,0.37273152,93814.0,93807.0,0.053404]
[1735738215359,0.37273152,93814.0,93807.0,0.001]
[1735738220250,0.37273152,93814.0,93808.0,0.053403]
[1735738221557,0.37273152,93814.0,93808.0,0.054403]
[1735738222756,0.3608,93824.0,93817.0,0.053399]
[1735738223062,0.3608,93824.0,93818.0,0.0331]
[1735738223260,0.3608,93824.0,93819.0,0.0624]
[1735738223963,0.3618,93824.0,93823.0,0.053395]
[1735738224169,0.3668,93824.0,93823.0,0.053395]
[1735738224663,0.38200203,93824.0,93823.0,0.053395]
[1735738225176,0.38100203,93824.0,93823.0,0.053395]
[1735738225460,0.37800203,93824.0,93823.0,0.053395]
[1735738226455,0.37800203,93824.0,93819.0,0.0624]
[1735738226657,0.37800203,93824.0,93819.0,0.115797]
[1735738227158,0.37800203,93824.0,93821.0,0.053396]
[1735738227159,0.37600203,93824.0,93821.0,0.053396]
[1735738227363,0.37800203,93824.0,93821.0,0.053396]
[1735738227763,0.37600203,93824.0,93821.0,0.053396]
[1735738228562,0.37700203,93824.0,93821.0,0.054396]
[1735738235866,0.37700203,93824.0,93821.0,0.001]
[1735738243468,0.37600203,93824.0,93821.0,0.001]
[1735738244681,0.37700203,93824.0,93821.0,0.001]
[1735738245185,0.37600203,93824.0,93821.0,0.001]
[1735738245377,0.37700203,93824.0,93821.0,0.001]
[1735738246472,0.37700203,93824.0,93819.0,0.0624]
[1735738246779,0.3608,93835.0,93823.0,0.053395]
[1735738246968,0.01888334,93838.0,93827.0,0.3608]
[1735738247167,0.3608,93843.0,93836.0,0.053387]
[1735738247383,0.3608,93843.0,93837.0,0.117887]
[1735738247774,0.02031623,93842.0,93837.0,0.117887]
[1735738248573,0.02931623,93842.0,93837.0,0.118887]
[1735738249574,0.03231623,93842.0,93837.0,0.118887]
[1735738252987,0.01359894,93842.0,93837.0,0.118887]
[1735738255985,0.01359894,93842.0,93840.0,0.053386]
[1735738256587,0.01359894,93842.0,93841.0,0.053385]
[1735738257381,0.00459894,93842.0,93841.0,0.053385]
[1735738257576,0.01359894,93842.0,93841.0,0.053385]
[1735738257982,0.00459894,93842.0,93841.0,0.053385]
[1735738258284,0.012,93842.0,93841.0,0.054385]
[1735738258698,0.0319,93868.0,93852.0,0.053378]
[1735738258699,0.00159831,93863.0,93852.0,0.053378]
[1735738258883,0.00159831,93863.0,93842.0,0.053384]
[1735738258884,0.00159831,93863.0,93857.0,0.7216]
[1735738259281,0.00159831,93863.0,93860.0,0.053374]
[1735738259684,0.00159831,93863.0,93862.0,0.053373]
[1735738259891,0.1,93875.0,93858.0,0.032]
[1735738260082,0.1,93875.0,93874.0,0.3608]
[1735738260283,0.1190273,93875.0,93874.0,0.3608]
[1735738261088,0.1220273,93875.0,93874.0,0.3608]
[1735738263386,0.1190273,93875.0,93874.0,0.3618]
[1735738267891,0.1190273,93875.0,93874.0,0.3608]
[1735738268795,0.1200273,93875.0,93874.0,0.3608]
[1735738269886,0.1200273,93875.0,93874.0,0.7216]
[1735738272197,0.1190273,93875.0,93874.0,0.7216]
[1735738275289,0.1200273,93875.0,93874.0,0.7216]
[1735738277999,0.42346815,93887.0,93874.0,0.7216]
[1735738278390,0.42346814,93886.0,93874.0,0.7216]
[1735738280096,0.42446814,93886.0,93874.0,0.7216]
[1735738281813,0.07170598,93884.0,93874.0,0.7216]
[1735738282001,0.3608,93877.0,93860.0,0.3608]
[1735738282205,0.42346814,93874.0,93860.0,0.43250598]
[1735738282597,0.42346814,93873.0,93869.0,0.3608]
[1735738282796,0.42346814,93878.0,93869.0,0.3608]
[1735738283305,0.42346814,93877.0,93869.0,0.3608]
[1735738285908,0.44255454,93877.0,93869.0,0.3608]
[1735738286308,0.0190864,93877.0,93869.0,0.3608]
[1735738286511,0.0318,93887.0,93869.0,0.3608]
[1735738287804,0.0318,93887.0,93880.0,0.3608]
[1735738288209,0.05085547,93887.0,93880.0,0.3608]
[1735738289004,0.05285547,93887.0,93880.0,0.3618]
[1735738292317,0.02105547,93887.0,93880.0,0.3618]
[1735738293131,0.44452361,93887.0,93880.0,0.3618]
[1735738293331,0.44452361,93887.0,93881.0,0.0305]
[1735738293622,0.02105547,93887.0,93881.0,0.062]
[1735738294323,0.01905547,93887.0,93881.0,0.062]
[1735738294525,0.002,93887.0,93881.0,0.063]
[1735738295031,0.002,93887.0,93881.0,0.0952]
[1735738299135,0.002,93887.0,93881.0,0.0942]
[1735738300823,0.0189405,93889.0,93881.0,0.0942]
[1735738301131,0.002,93887.0,93881.0,0.0942]
[1735738301525,0.002,93887.0,93881.0,0.062]
[1735738301926,0.002,93889.0,93881.0,0.062]
[1735738302531,5.699e-05,93884.0,93881.0,0.062]
[1735738304636,0.00105699,93884.0,93881.0,0.062]
[1735738305541,0.00105699,93884.0,93881.0,0.0934]
[1735738306332,5.699e-05,93884.0,93881.0,0.0934]
[1735738306528,0.00205699,93884.0,93881.0,0.0934]
[1735738317637,0.00205699,93884.0,93881.0,0.062]
[1735738324244,0.23127868,93890.0,93881.0,0.062]
[1735738325539,0.23927868,93890.0,93881.0,0.062]
[1735738334654,0.008,93890.0,93881.0,0.062]
[1735738335846,0.008,93890.0,93884.0,0.05336]
[1735738336047,0.008,93890.0,93885.0,0.0333]
[1735738337659,0.01937038,93891.0,93885.0,0.0333]
[1735738337955,0.004,93890.0,93885.0,0.0343]
[1735738338757,0.39054474,93894.0,93885.0,0.0333]
[1735738338955,0.004,93891.0,93885.0,0.0343]
[1735738339364,0.39054474,93894.0,93885.0,0.0333]
[1735738339554,0.004,93890.0,93885.0,0.0343]
[1735738341051,0.004,93891.0,93885.0,0.0343]
[1735738341557,0.39054474,93894.0,93885.0,0.0333]
[1735738341752,0.004,93890.0,93885.0,0.0343]
[1735738342660,0.39054474,93894.0,93885.0,0.0333]
[1735738342861,0.004,93891.0,93885.0,0.0343]
[1735738344260,0.004,93890.0,93885.0,0.0343]
[1735738344856,0.39054474,93894.0,93885.0,0.0333]
[1735738345055,0.39054474,93894.0,93885.0,0.0343]
[1735738345056,0.004,93891.0,93885.0,0.0343]
[1735738345858,0.39054474,93894.0,93885.0,0.0343]
[1735738345859,0.004,93890.0,93885.0,0.0343]
[1735738347652,0.39054474,93894.0,93885.0,0.0333]
[1735738347961,0.004,93891.0,93885.0,0.0343]
[1735738348367,0.004,93890.0,93885.0,0.0343]
[1735738349471,0.39454474,93894.0,93885.0,0.0343]
[1735738351073,0.004,93890.0,93885.0,0.0343]
[1735738351673,0.39454474,93894.0,93885.0,0.0333]
[1735738352180,0.39054474,93894.0,93885.0,0.0333]
[1735738352379,0.004,93890.0,93885.0,0.0333]
[1735738353389,0.004,93890.0,93885.0,0.08666]
[1735738353983,0.39454474,93894.0,93881.0,0.062]
[1735738354177,0.39454474,93894.0,93882.0,0.0305]
[1735738354783,0.004,93890.0,93882.0,0.0305]
[1735738355381,0.39254474,93894.0,93882.0,0.0305]
[1735738357787,0.39054474,93894.0,93882.0,0.0305]
[1735738357990,0.002,93890.0,93882.0,0.0305]
[1735738358490,0.39254474,93894.0,93882.0,0.0305]
[1735738358991,0.39254474,93894.0,93887.0,0.053359]
[1735738359185,0.002,93890.0,93882.0,0.06131124]
[1735738359489,0.002,93890.0,93888.0,0.053358]
[1735738359698,0.39054474,93894.0,93888.0,0.053358]
[1735738359991,0.39254474,93894.0,93888.0,0.053358]
[1735738360581,0.39254474,93894.0,93882.0,0.0305]
[1735738360787,0.03174474,93894.0,93891.0,0.3608]
[1735738361587,0.02974474,93894.0,93891.0,0.3608]
[1735738361792,0.2,93900.0,93891.0,0.3608]
[1735738361980,0.2,93900.0,93899.0,0.3608]
[1735738362390,0.23071462,93900.0,93899.0,0.3608]
[1735738365194,0.23471462,93900.0,93899.0,0.3608]
[1735738384312,0.204,93900.0,93899.0,0.414152]
[1735738384609,0.3608,93916.0,93904.0,0.053349]
[1735738384816,0.3608,93916.0,93906.0,0.07170598]
[1735738385105,0.3608,93916.0,93900.0,0.07170598]
[1735738385314,0.00159751,93919.0,93910.0,0.3608]
[1735738385701,0.004,93916.0,93910.0,0.3608]
[1735738387315,0.0273181,93919.0,93910.0,0.3608]
[1735738391118,0.0273181,93919.0,93915.0,0.053343]
[1735738391312,0.0273181,93919.0,93918.0,0.3608]
[1735738391623,0.23127869,93937.0,93919.0,0.05334]
[1735738391822,0.08454054,93925.0,93919.0,0.05334]
[1735738392115,0.08454054,93925.0,93920.0,0.3608]
[1735738392417,0.08454054,93925.0,93922.0,0.053338]
[1735738392618,0.08454054,93925.0,93920.0,0.3608]
[1735738393310,0.11057706,93925.0,93920.0,0.3608]
[1735738394324,0.11057706,93925.0,93920.0,0.3618]
[1735738397417,0.11057706,93925.0,93920.0,0.3608]
[1735738398117,0.08454054,93925.0,93920.0,0.3608]
[1735738399527,0.08454054,93925.0,93924.0,0.053338]
[1735738401319,0.17170598,93950.0,93929.0,0.053335]
[1735738401529,0.3936078,93945.0,93931.0,0.3608]
[1735738401917,0.3936078,93945.0,93932.0,0.0322]
[1735738407125,0.3936078,93945.0,93937.0,0.05333]
[1735738407432,0.3936078,93945.0,93938.0,0.0327]
[1735738407621,0.0328078,93945.0,93944.0,0.3608]
[1735738407822,0.1,93950.0,93944.0,0.3608]
[1735738409228,0.13240784,93950.0,93944.0,0.3608]
[1735738410135,0.13240784,93950.0,93944.0,0.3618]
[1735738411630,0.13240784,93950.0,93944.0,0.3608]
[1735738415533,0.01540927,93959.0,93944.0,0.3608]
[1735738416233,0.04796764,93959.0,93944.0,0.3608]
[1735738417636,0.07170598,93954.0,93944.0,0.3608]
[1735738417838,0.23127869,93952.0,93944.0,0.3608]
[1735738419633,0.23127869,93948.0,93944.0,0.3608]
[1735738419835,0.3608,93945.0,93932.0,0.0322]
[1735738420133,0.14341196,93942.0,93931.0,0.3608]
[1735738420338,0.23127869,93935.0,93931.0,0.3608]
[1735738420541,0.23127869,93932.0,93931.0,0.3608]
[1735738420847,0.0611,93941.0,93931.0,0.3608]
[1735738421748,0.12232559,93940.0,93931.0,0.3608]
[1735738421962,0.12232559,93940.0,93913.0,0.3608]
[1735738422137,0.3608,93932.0,93931.0,0.001]
[1735738423641,0.3608,93932.0,93913.0,0.3608]
[1735738423841,0.3608,93932.0,93931.0,0.001]
[1735738424241,0.3608,93932.0,93913.0,0.3608]
[1735738424443,0.3608,93932.0,93931.0,0.001]
[1735738425445,0.3608,93932.0,93913.0,0.3618]
[1735738425647,0.3608,93932.0,93913.0,0.3628]
[1735738425839,0.23127869,93931.0,93913.0,0.3628]
[1735738426244,0.23127869,93930.0,93913.0,0.3628]
[1735738426454,0.3608,93932.0,93913.0,0.3618]
[1735738426455,0.23127869,93931.0,93913.0,0.3618]
[1735738426948,0.23127869,93931.0,93913.0,0.3608]
[1735738427348,0.23127869,93931.0,93913.0,0.3618]
[1735738427559,0.10915895,93930.0,93913.0,0.3628]
[1735738428751,0.10915895,93930.0,93913.0,0.3618]
[1735738428948,0.10915895,93930.0,93913.0,0.3628]
[1735738433547,0.23127869,93931.0,93913.0,0.3628]
[1735738433747,0.10915895,93930.0,93913.0,0.416144]
[1735738434045,0.34043764,93930.0,93913.0,0.416144]
[1735738434245,0.34043764,93930.0,93913.0,0.3628]
[1735738434445,0.10915895,93930.0,93913.0,0.3628]
[1735738434854,0.34043764,93930.0,93913.0,0.3628]
[1735738435158,0.34043764,93930.0,93913.0,0.3618]
[1735738435348,0.34043764,93930.0,93913.0,0.3628]
[1735738439059,0.10915895,93930.0,93915.0,0.053342]
[1735738439957,0.10915895,93930.0,93921.0,0.3608]
[1735738440164,0.10915895,93930.0,93922.0,0.0305]
[1735738440360,0.10915895,93930.0,93922.0,0.0619]
[1735738443061,0.39349857,93932.0,93922.0,0.0619]
[1735738444251,0.46512734,93932.0,93922.0,0.0619]
[1735738444864,0.10432734,93932.0,93922.0,0.0619]
[1735738450668,0.23127869,93930.0,93922.0,0.0305]
[1735738451065,0.23127869,93929.0,93922.0,0.0305]
[1735738462267,0.23127869,93931.0,93922.0,0.0305]
[1735738462467,0.03269857,93932.0,93922.0,0.0305]
[1735738462666,0.30450463,93950.0,93930.0,0.3608]
[1735738462871,0.40140354,93945.0,93931.0,0.061]
[1735738463970,0.40140354,93945.0,93931.0,0.062]
[1735738465172,0.07162877,93941.0,93931.0,0.062]
[1735738467676,0.40140354,93945.0,93931.0,0.062]
[1735738470274,0.04060354,93945.0,93941.0,0.3608]
[1735738470482,0.50672095,93957.0,93941.0,0.3608]
[1735738470483,0.14536094,93957.0,93942.0,0.0315]
[1735738470684,0.37663963,93957.0,93951.0,0.3608]
[1735738470884,0.42719284,93957.0,93952.0,0.0317]
[1735738471284,0.19591415,93957.0,93952.0,0.0317]
[1735738473388,0.19591415,93957.0,93952.0,0.0327]
[1735738473774,0.19591415,93957.0,93952.0,0.0317]
[1735738473984,0.19591415,93957.0,93952.0,0.0327]
[1735738476586,0.19591415,93957.0,93952.0,0.0317]
[1735738476888,0.19591415,93957.0,93952.0,0.0327]
[1735738484193,0.42719284,93957.0,93952.0,0.001]
[1735738484394,0.23127869,93954.0,93952.0,0.001]
[1735738484691,0.23127869,93953.0,93952.0,0.001]
[1735738485995,0.19591415,93957.0,93952.0,0.001]
[1735738486191,0.19591415,93957.0,93941.0,0.3608]
[1735738486493,0.23127869,93947.0,93941.0,0.3608]
[1735738486888,0.0313,93950.0,93941.0,0.3608]
[1735738487693,0.26257869,93950.0,93941.0,0.3608]
[1735738488096,0.0313,93950.0,93941.0,0.3608]
[1735738488299,0.26257869,93950.0,93941.0,0.3608]
[1735738488699,0.0313,93950.0,93941.0,0.3608]
[1735738489199,0.23127869,93947.0,93941.0,0.3608]
[1735738489598,0.0333,93950.0,93941.0,0.3608]
[1735738490193,0.23127869,93947.0,93941.0,0.3608]
[1735738490600,0.0333,93950.0,93941.0,0.3608]
[1735738491096,0.23127869,93947.0,93941.0,0.32472001]
[1735738491395,0.0333,93950.0,93941.0,0.32472001]
[1735738491899,0.002,93950.0,93941.0,0.32472001]
[1735738492100,0.23127869,93948.0,93941.0,0.32472001]
[1735738492897,0.23127869,93947.0,93941.0,0.32472001]
[1735738493200,0.23227869,93947.0,93941.0,0.32472001]
[1735738493800,0.23127869,93947.0,93941.0,0.32472001]
[1735738494500,0.23227869,93947.0,93941.0,0.32472001]
[1735738496893,0.001,93947.0,93941.0,0.32472001]
[1735738498494,0.04360022,93947.0,93941.0,0.32472001]
[1735738504404,0.04260022,93947.0,93941.0,0.32472001]
[1735738504604,0.001,93947.0,93941.0,0.32472001]
[1735738520314,0.001,93947.0,93941.0,0.28224459]
[1735738521918,0.001,93947.0,93941.0,0.19583616]
[1735738534913,0.001,93947.0,93941.0,0.10227471]
[1735738535723,0.001,93947.0,93941.0,0.02285589]
[1735738540519,0.001,93947.0,93942.0,0.053327]
[1735738541320,0.001,93947.0,93941.0,0.07617889]
[1735738541516,0.001,93947.0,93941.0,0.02285589]
[1735738541721,0.23127869,93963.0,93946.0,0.05332]
[1735738542029,0.3977729,93958.0,93950.0,0.3608]
[1735738542431,0.0369729,93958.0,93950.0,0.3608]
[1735738542729,0.50614203,93967.0,93950.0,0.3608]
[1735738542919,0.54352215,93967.0,93950.0,0.3608]
[1735738543628,0.001,93958.0,93950.0,0.3608]
[1735738544830,0.001,93958.0,93951.0,0.0313]
[1735738545220,0.54352215,93967.0,93951.0,0.0313]
[1735738546921,0.54352215,93967.0,93951.0,0.0323]
[1735738548030,0.39818012,93967.0,93957.0,0.14325754]
[1735738548227,0.2,93975.0,93964.0,0.05331]
[1735738548535,0.2,93975.0,93974.0,0.3608]
[1735738548823,0.23591386,93975.0,93974.0,0.3608]
[1735738549835,0.23591386,93975.0,93974.0,0.3618]
[1735738550136,0.23591386,93975.0,93974.0,0.32572001]
[1735738556440,0.23591386,93975.0,93974.0,0.001]
[1735738557526,0.3504205,93975.0,93955.0,0.00159646]
[1735738557733,0.43242877,93965.0,93955.0,0.00159646]
[1735738558031,0.064,93964.0,93955.0,0.00159646]
[1735738558225,0.3608,93956.0,93955.0,0.00159646]
[1735738559129,0.3608,93956.0,93941.0,0.2621689]
[1735738559637,0.23127869,93954.0,93941.0,0.2621689]
[1735738560335,0.3608,93947.0,93940.0,0.07162877]
[1735738560640,0.3608,93947.0,93941.0,0.001]
[1735738561530,0.3608,93947.0,93941.0,0.004]
[1735738562031,0.3618,93947.0,93941.0,0.001]
[1735738562234,0.3618,93947.0,93940.0,0.07262877]
[1735738563040,0.3618,93947.0,93941.0,0.001]
[1735738563737,0.3608,93943.0,93941.0,0.001]
[1735738563945,0.3608,93943.0,93934.0,0.0611]
[1735738564132,0.3608,93943.0,93940.0,0.001]
[1735738564636,0.3608,93943.0,93940.0,0.002]
[1735738565243,0.3608,93943.0,93940.0,0.001]
[1735738566043,0.3618,93943.0,93940.0,0.001]
[1735738566243,0.3618,93943.0,93941.0,0.001]
[1735738566444,0.3608,93943.0,93941.0,0.001]
[1735738566645,0.3618,93943.0,93941.0,0.001]
[1735738567048,0.3618,93943.0,93933.0,0.23688976]
[1735738568744,0.3608,93943.0,93933.0,0.23888976]
[1735738569648,0.3608,93943.0,93933.0,0.24088976]
[1735738569649,0.23127869,93940.0,93933.0,0.24088976]
[1735738570553,0.3608,93935.0,93933.0,0.24088976]
[1735738571239,0.3608,93935.0,93933.0,0.23988976]
[1735738571851,0.3618,93935.0,93933.0,0.23888976]
[1735738572241,0.3618,93935.0,93933.0,0.002]
[1735738572443,0.3618,93935.0,93933.0,0.001]
[1735738573140,0.3618,93935.0,93923.0,0.084633]
[1735738573344,0.3618,93935.0,93933.0,0.001]
[1735738574261,0.40856532,93935.0,93933.0,0.001]
[1735738574952,0.40756532,93935.0,93933.0,0.001]
[1735738575152,0.40756532,93935.0,93923.0,0.0313]
[1735738575452,0.40756532,93935.0,93923.0,0.0333]
[1735738575453,0.40856532,93935.0,93923.0,0.0333]
[1735738576054,0.40856532,93935.0,93933.0,0.001]
[1735738576545,0.40756532,93935.0,93933.0,0.001]
[1735738577044,0.40756532,93935.0,93923.0,0.0373]
[1735738577656,0.23127869,93933.0,93923.0,0.0373]
[1735738578051,0.23127869,93931.0,93923.0,0.002]
[1735738578648,0.23127869,93931.0,93922.0,0.00159695]
[1735738579452,0.23127869,93931.0,93923.0,0.006]
[1735738579852,0.10912928,93933.0,93923.0,0.006]
[1735738579853,0.26267869,93930.0,93923.0,0.006]
[1735738580261,0.26267869,93930.0,93923.0,0.004]
[1735738580957,0.26267869,93930.0,93922.0,0.00859695]
[1735738581562,0.26267869,93930.0,93923.0,0.004]
[1735738581858,0.26267869,93930.0,93923.0,0.006]
[1735738582058,0.26267869,93930.0,93923.0,0.002]
[1735738582756,0.26267869,93930.0,93923.0,0.006]
[1735738584958,0.23127869,93925.0,93923.0,0.006]
[1735738585159,0.0318,93924.0,93923.0,0.006]
[1735738585558,0.26307869,93924.0,93923.0,0.006]
[1735738585958,0.0318,93924.0,93923.0,0.006]
[1735738586151,0.26307869,93924.0,93923.0,0.006]
[1735738586562,0.0318,93924.0,93923.0,0.006]
[1735738586860,0.26307869,93924.0,93923.0,0.006]
[1735738587253,0.0318,93924.0,93923.0,0.006]
[1735738587452,0.26307869,93924.0,93923.0,0.006]
[1735738587858,0.0318,93924.0,93923.0,0.002]
[1735738588068,0.26307869,93924.0,93923.0,0.002]
[1735738588361,0.0318,93924.0,93923.0,0.002]
[1735738591463,0.0318,93924.0,93909.0,0.32712001]
[1735738591660,0.3608,93919.0,93909.0,0.32712001]
[1735738592661,0.3608,93919.0,93909.0,0.32912001]
[1735738592963,0.3608,93919.0,93909.0,0.33212001]
[1735738594157,0.3608,93919.0,93909.0,0.33012001]
[1735738594361,0.3608,93919.0,93909.0,0.33212001]
[1735738596056,0.23127869,93920.0,93909.0,0.44124929]
[1735738596366,0.05253413,93924.0,93919.0,0.31118113]
[1735738596568,0.3608,93927.0,93920.0,0.0627]
[1735738596771,0.41388948,93927.0,93920.0,0.0948]
[1735738597373,0.3608,93927.0,93920.0,0.0948]
[1735738598264,0.002,93924.0,93919.0,0.31037722]
[1735738598670,0.3608,93927.0,93919.0,0.31037722]
[1735738598866,0.3628,93927.0,93919.0,0.31037722]
[1735738599466,0.002,93924.0,93919.0,0.31037722]
[1735738600869,0.3608,93927.0,93919.0,0.31037722]
[1735738601072,0.3628,93927.0,93919.0,0.31037722]
[1735738601571,0.002,93924.0,93920.0,0.0942]
[1735738602274,0.3628,93927.0,93920.0,0.0942]
[1735738602657,0.3608,93927.0,93920.0,0.0942]
[1735738602860,0.002,93924.0,93920.0,0.0942]
[1735738604267,0.3628,93927.0,93920.0,0.0942]
[1735738604773,0.3608,93927.0,93920.0,0.0942]
[1735738604969,0.002,93924.0,93920.0,0.0942]
[1735738605369,0.3608,93927.0,93920.0,0.0942]
[1735738605566,0.3628,93927.0,93920.0,0.0942]
[1735738606276,0.002,93927.0,93920.0,0.147535]
[1735738606574,0.002,93927.0,93921.0,0.053333]
[1735738607763,0.002,93924.0,93923.0,0.053333]
[1735738608270,0.3608,93937.0,93924.0,0.053332]
[1735738608471,0.003,93927.0,93924.0,0.053332]
[1735738608873,0.41509873,93937.0,93924.0,0.053332]
[1735738609072,0.41509873,93937.0,93929.0,0.3608]
[1735738609381,0.3608,93948.0,93929.0,0.3608]
[1735738609762,0.23127869,93947.0,93929.0,0.3608]
[1735738609964,0.05513805,93945.0,93929.0,0.3608]
[1735738610174,0.0315,93944.0,93929.0,0.3608]
[1735738610577,0.0333,93943.0,93929.0,0.3608]